fUST/lending_fUST_20241202
["ID","MTS","AMOUNT","RATE_DAILY","PERIOD"]
[343943230,1733112639556,-500.0,0.00027945,7]
[343943231,1733112639565,-500.0,0.00027945,7]
[343943232,1733112639575,-500.0,0.00027945,7]
[343943233,1733112639585,-500.0,0.00027945,7]
[343943234,1733112639595,-500.0,0.00027945,7]
[343943235,1733112639605,-500.0,0.00027945,7]
[343943236,1733112639618,-500.0,0.00027945,7]
[343943237,1733112639627,-554.98,0.00027945,7]
[343943238,1733112639637,-500.0,0.00027945,7]
[343943239,1733112639647,-500.0,0.00027945,7]
[343943240,1733112639657,-500.0,0.00027945,7]
[343943241,1733112639666,-500.0,0.00027945,7]
[343943242,1733112639676,-500.0,0.00027945,7]
[343943243,1733112639685,-361.23610863,0.00027945,7]
[343943244,1733112639695,-500.0,0.00027945,7]
[343943245,1733112639705,-500.0,0.00027945,7]
[343943246,1733112639715,-500.0,0.00027945,7]
[343943247,1733112639725,-500.0,0.00027945,7]
[343943248,1733112639736,-500.0,0.00027945,7]
[343943249,1733112639745,-945.46,0.00027945,7]
[343943250,1733112639758,-500.0,0.00027945,7]
[343943251,1733112639768,-500.0,0.00027945,7]
[343943252,1733112639778,-824.95,0.00027945,7]
[343943253,1733112639788,-500.0,0.00027945,7]
[343943254,1733112639798,-686.23,0.00027945,7]
[343943255,1733112639809,-3760.07219102,0.00027945,7]
[343943256,1733112639823,-368.28780898,0.00027945,7]
[343943257,1733112639833,-500.0,0.00027945,7]
[343943259,1733112639846,-500.0,0.00027945,7]
[343943261,1733112639857,-500.0,0.00027945,7]
[343943264,1733112639873,-632.21649862,0.00027973,5]
[343943266,1733112639884,-500.0,0.00027973,5]
[343943268,1733112639895,-500.0,0.00027973,5]
[343943270,1733112639905,-151.0,0.00028,7]
[343943271,1733112639916,-150.0,0.00028,2]
[343943272,1733112639927,-167.90609009,0.00028037,2]
[343943273,1733112639937,-151.0,0.00028161,6]
[343943274,1733112639958,-500.0,0.00028218,7]
[343943275,1733112639968,-1952.05,0.00028218,7]
[343943276,1733112639978,-1647.49,0.00028218,7]
[343943277,1733112639988,-500.0,0.00028218,7]
[343943278,1733112639998,-535.23,0.00028218,7]
[343943279,1733112640007,-500.0,0.00028218,7]
[343943280,1733112640017,-500.0,0.00028218,7]
[343943281,1733112640027,-254.29369596,0.00028218,7]
[343943282,1733112640037,-26016.84,0.00028218,7]
[343943283,1733112640047,-151.0,0.00028219,7]
[343943284,1733112640057,-500.0,0.00028219,7]
[343943285,1733112640067,-500.0,0.00028219,7]
[343943286,1733112640078,-500.0,0.00028219,7]
[343943287,1733112640088,-500.0,0.00028219,7]
[343943288,1733112640099,-500.0,0.00028219,7]
[343943289,1733112640109,-500.0,0.00028219,7]
[343943290,1733112640122,-500.0,0.00028219,7]
[343943291,1733112640132,-500.0,0.00028219,7]
[343943292,1733112640142,-500.0,0.00028219,7]
[343943293,1733112640152,-555.25,0.00028219,7]
[343943294,1733112640162,-500.0,0.00028219,7]
[343943295,1733112640172,-500.0,0.00028219,7]
[343943296,1733112640180,-284.53340121,0.00028219,7]
[343943297,1733112640190,-500.0,0.00028219,7]
[343943298,1733112640200,-500.0,0.00028219,7]
[343943299,1733112640209,-500.0,0.00028219,7]
[343943300,1733112640219,-500.0,0.00028219,7]
[343943301,1733112640315,-500.0,0.00028219,7]
[343943302,1733112640326,-500.0,0.00028219,7]
[343943303,1733112640336,-500.0,0.00028219,7]
[343943304,1733112640347,-392.89776815,0.00028219,7]
[343943305,1733112640358,-500.0,0.00028219,7]
[343943306,1733112640374,-500.0,0.00028219,7]
[343943307,1733112640384,-550.66,0.00028219,7]
[343943308,1733112640394,-500.0,0.00028219,7]
[343943309,1733112640404,-500.0,0.00028219,7]
[343943310,1733112640414,-500.0,0.00028219,7]
[343943311,1733112640424,-500.0,0.00028219,7]
[343943312,1733112640434,-500.0,0.00028219,7]
[343943313,1733112640445,-500.0,0.00028219,7]
[343943314,1733112640456,-507.16842189,0.00028219,7]
[343943315,1733112640465,-500.0,0.00028219,7]
[343943316,1733112640475,-500.0,0.00028219,7]
[343943317,1733112640486,-500.0,0.00028219,7]
[343943318,1733112640497,-500.0,0.00028219,7]
[343943319,1733112640508,-500.0,0.00028219,7]
[343943320,1733112640519,-500.0,0.00028219,7]
[343943321,1733112640530,-500.0,0.00028219,7]
[343943322,1733112640541,-500.0,0.00028219,7]
[343943323,1733112640552,-500.0,0.00028219,7]
[343943324,1733112640562,-613.96039425,0.00028219,2]
[343943325,1733112640573,-500.0,0.00028219,7]
[343943326,1733112640583,-500.0,0.00028219,7]
[343943327,1733112640593,-500.0,0.00028219,7]
[343943328,1733112640603,-500.0,0.00028219,7]
[343943329,1733112640618,-500.0,0.00028219,7]
[343943330,1733112640631,-500.0,0.00028219,7]
[343943331,1733112640641,-500.0,0.00028219,7]
[343943332,1733112640651,-500.0,0.00028219,7]
[343943333,1733112640660,-500.0,0.00028219,7]
[343943334,1733112640670,-500.0,0.00028219,7]
[343943335,1733112640679,-306.5,0.00028219,7]
[343943336,1733112640689,-500.0,0.00028219,7]
[343943337,1733112640699,-500.0,0.00028219,7]
[343943338,1733112640710,-500.0,0.00028219,7]
[343943340,1733112640720,-500.0,0.00028219,7]
[343943341,1733112640729,-500.0,0.00028219,7]
[343943342,1733112640739,-500.0,0.00028219,7]
[343943343,1733112640750,-500.0,0.00028219,7]
[343943345,1733112640762,-316.20323934,0.00028219,7]
[343943346,1733112640775,-500.0,0.00028219,7]
[343943347,1733112640785,-500.0,0.00028219,7]
[343943348,1733112640795,-500.0,0.00028219,7]
[343943349,1733112640807,-503.68,0.00028219,7]
[343943350,1733112640816,-500.0,0.00028219,7]
[343943351,1733112640826,-822.9,0.00028219,7]
[343943352,1733112640836,-500.0,0.00028219,7]
[343943353,1733112640847,-500.0,0.00028219,7]
[343943354,1733112640858,-500.0,0.00028219,7]
[343943355,1733112640878,-1257.7,0.00028219,7]
[343943356,1733112640888,-500.0,0.00028219,7]
[343943357,1733112640899,-500.0,0.00028219,7]
[343943358,1733112640909,-500.0,0.00028219,7]
[343943359,1733112640919,-500.0,0.00028219,7]
[343943360,1733112640929,-719.62,0.00028219,7]
[343943361,1733112640939,-500.0,0.00028219,7]
[343943362,1733112640949,-500.0,0.00028219,7]
[343943363,1733112640959,-500.0,0.00028219,7]
[343943364,1733112640969,-516.00185164,0.00028219,7]
[343943365,1733112640980,-500.0,0.00028219,7]
[343943366,1733112640991,-500.0,0.00028219,7]
[343943367,1733112641001,-500.0,0.00028219,7]
[343943368,1733112641011,-500.0,0.00028219,7]
[343943369,1733112641021,-500.0,0.00028219,7]
[343943370,1733112641031,-500.0,0.00028219,7]
[343943371,1733112641041,-500.0,0.00028219,7]
[343943372,1733112641051,-500.0,0.00028219,7]
[343943373,1733112641061,-500.0,0.00028219,7]
[343943374,1733112641071,-500.0,0.00028219,7]
[343943375,1733112641081,-500.0,0.00028219,7]
[343943376,1733112641091,-500.0,0.00028219,7]
[343943377,1733112641101,-500.0,0.00028219,7]
[343943378,1733112641111,-554.98,0.00028219,7]
[343943379,1733112641131,-500.0,0.00028219,7]
[343943380,1733112641141,-500.0,0.00028219,7]
[343943381,1733112641151,-500.0,0.00028219,7]
[343943382,1733112641161,-500.0,0.00028219,7]
[343943383,1733112641171,-500.0,0.00028219,7]
[343943384,1733112641182,-500.0,0.00028219,7]
[343943385,1733112641192,-500.0,0.00028219,7]
[343943386,1733112641202,-500.0,0.00028219,7]
[343943387,1733112641212,-500.0,0.00028219,7]
[343943388,1733112641222,-500.0,0.00028219,7]
[343943389,1733112641232,-945.46,0.00028219,7]
[343943390,1733112641242,-500.0,0.00028219,7]
[343943391,1733112641252,-500.0,0.00028219,7]
[343943392,1733112641262,-824.95,0.00028219,7]
[343943393,1733112641271,-500.0,0.00028219,7]
[343943394,1733112641281,-686.23,0.00028219,7]
[343943395,1733112641291,-4128.36,0.00028219,7]
[343943396,1733112641301,-500.0,0.00028219,7]
[343943397,1733112641311,-500.0,0.00028219,7]
[343943398,1733112641320,-500.0,0.00028219,7]
[343943399,1733112641330,-1009.3250166,0.00028221,5]
[343943400,1733112641340,-501.91489071,0.00028221,5]
[343943401,1733112641351,-1566.95,0.000284,31]
[343943402,1733112641361,-1566.95,0.000284,31]
[343943403,1733112641378,-1566.95,0.000284,31]
[343943404,1733112641387,-1566.95,0.000284,31]
[343943405,1733112641398,-1566.95,0.000284,31]
[343943406,1733112641407,-1566.95,0.000284,31]
[343943407,1733112641416,-1566.95,0.000284,31]
[343943408,1733112641426,-1566.95,0.000284,31]
[343943409,1733112641435,-1566.95,0.000284,31]
[343943410,1733112641444,-1566.95,0.000284,31]
[343943411,1733112641454,-1566.95,0.000284,31]
[343943412,1733112641463,-1566.95,0.000284,31]
[343943413,1733112641473,-1566.95,0.000284,31]
[343943414,1733112641482,-1566.95,0.000284,31]
[343943415,1733112641492,-1566.95,0.000284,31]
[343943416,1733112641502,-1566.95,0.000284,31]
[343943417,1733112641512,-1566.95,0.000284,31]
[343943418,1733112641521,-1566.95,0.000284,31]
[343943419,1733112641531,-1566.95,0.000284,31]
[343943420,1733112641541,-1566.95,0.000284,31]
[343943421,1733112641551,-1566.95,0.000284,31]
[343943422,1733112641561,-1566.95,0.000284,31]
[343943423,1733112641572,-1566.95,0.000284,31]
[343943424,1733112641581,-1566.95,0.000284,31]
[343943425,1733112641591,-150.0,0.000284,2]
[343943426,1733112641601,-617.0,0.000284,2]
[343943427,1733112641611,-401.006673,0.00028459,2]
[343943428,1733112641621,-172.183979,0.00028459,2]
[343943429,1733112641630,-780.933272,0.00028459,2]
[343943430,1733112641640,-500.0,0.00028473,5]
[343943431,1733112641649,-160.35329646,0.00028473,2]
[343943432,1733112641658,-500.0,0.00028473,5]
[343943433,1733112641668,-263.94623079,0.00028473,5]
[343943434,1733112641683,-502.711171,0.00028473,5]
[343943435,1733112641694,-500.0,0.00028492,7]
[343943436,1733112641703,-1952.05,0.00028492,7]
[343943437,1733112641714,-1647.49,0.00028492,7]
[343943438,1733112641724,-500.0,0.00028492,7]
[343943439,1733112641734,-535.23,0.00028492,7]
[343943440,1733112641744,-500.0,0.00028492,7]
[343943441,1733112641754,-500.0,0.00028492,7]
[343943442,1733112641769,-26016.84,0.00028492,7]
[343943443,1733112641779,-151.0,0.00028493,7]
[343943444,1733112641789,-500.0,0.00028493,7]
[343943445,1733112641799,-500.0,0.00028493,7]
[343943446,1733112641810,-500.0,0.00028493,7]
[343943447,1733112641820,-332.79889756,0.00028493,7]
[343943448,1733112641830,-500.0,0.00028493,7]
[343943449,1733112641841,-500.0,0.00028493,7]
[343943450,1733112641852,-500.0,0.00028493,7]
[343943451,1733112641863,-500.0,0.00028493,7]
[343943452,1733112641883,-500.0,0.00028493,7]
[343943453,1733112641892,-555.25,0.00028493,7]
[343943454,1733112641903,-500.0,0.00028493,7]
[343943456,1733112641916,-500.0,0.00028493,7]
[343943457,1733112641926,-500.0,0.00028493,7]
[343943458,1733112641936,-500.0,0.00028493,7]
[343943459,1733112641945,-500.0,0.00028493,7]
[343943460,1733112641955,-500.0,0.00028493,7]
[343943462,1733112641965,-500.0,0.00028493,7]
[343943463,1733112641974,-500.0,0.00028493,7]
[343943464,1733112641983,-500.0,0.00028493,7]
[343943465,1733112641992,-500.0,0.00028493,7]
[343943466,1733112642001,-500.0,0.00028493,7]
[343943467,1733112642011,-550.66,0.00028493,7]
[343943469,1733112642021,-500.0,0.00028493,7]
[343943470,1733112642031,-500.0,0.00028493,7]
[343943471,1733112642040,-500.0,0.00028493,7]
[343943472,1733112642049,-500.0,0.00028493,7]
[343943473,1733112642059,-500.0,0.00028493,7]
[343943474,1733112642069,-500.0,0.00028493,7]
[343943475,1733112642079,-500.0,0.00028493,7]
[343943476,1733112642088,-500.0,0.00028493,7]
[343943477,1733112642098,-500.0,0.00028493,7]
[343943478,1733112642107,-500.0,0.00028493,7]
[343943479,1733112642117,-500.0,0.00028493,7]
[343943481,1733112642127,-500.0,0.00028493,7]
[343943482,1733112642137,-500.0,0.00028493,7]
[343943483,1733112642147,-500.0,0.00028493,7]
[343943484,1733112642156,-500.0,0.00028493,7]
[343943485,1733112642166,-500.0,0.00028493,7]
[343943486,1733112642175,-500.0,0.00028493,7]
[343943487,1733112642185,-500.0,0.00028493,7]
[343943488,1733112642195,-500.0,0.00028493,7]
[343943489,1733112642205,-500.0,0.00028493,7]
[343943490,1733112642215,-493.64046381,0.00028493,7]
[343943491,1733112642225,-500.0,0.00028493,7]
[343943492,1733112642236,-500.0,0.00028493,7]
[343943494,1733112642246,-363.06122302,0.00028493,7]
[343943723,1733112649857,-136.93877698,0.00028493,7]
[343943724,1733112649872,-500.0,0.00028493,7]
[343943725,1733112649884,-500.0,0.00028493,7]
[343943726,1733112649895,-500.0,0.00028493,7]
[343943727,1733112649906,-500.0,0.00028493,7]
[343943728,1733112649916,-500.0,0.00028493,7]
[343943729,1733112649926,-500.0,0.00028493,7]
[343943730,1733112649936,-206.07243793,0.00028493,7]
[343943731,1733112649947,-500.0,0.00028493,7]
[343943732,1733112649957,-500.0,0.00028493,7]
[343943733,1733112649967,-179.45274643,0.00028493,7]
[343943734,1733112649977,-305.38168612,0.00028493,7]
[343943735,1733112649988,-503.68,0.00028493,7]
[343943736,1733112649997,-500.0,0.00028493,7]
[343943737,1733112650008,-822.9,0.00028493,7]
[343943738,1733112650019,-500.0,0.00028493,7]
[343943739,1733112650029,-500.0,0.00028493,7]
[343943740,1733112650039,-500.0,0.00028493,7]
[343943741,1733112650050,-1257.7,0.00028493,7]
[343943742,1733112650060,-500.0,0.00028493,7]
[343943743,1733112650069,-500.0,0.00028493,7]
[343943744,1733112650080,-500.0,0.00028493,7]
[343943745,1733112650090,-500.0,0.00028493,7]
[343943746,1733112650100,-719.62,0.00028493,7]
[343943747,1733112650109,-500.0,0.00028493,7]
[343943748,1733112650123,-500.0,0.00028493,7]
[343943749,1733112650133,-500.0,0.00028493,7]
[343943750,1733112650143,-500.0,0.00028493,7]
[343943751,1733112650152,-500.0,0.00028493,7]
[343943752,1733112650162,-500.0,0.00028493,7]
[343943753,1733112650172,-500.0,0.00028493,7]
[343943754,1733112650182,-500.0,0.00028493,7]
[343943755,1733112650192,-500.0,0.00028493,7]
[343943756,1733112650202,-500.0,0.00028493,7]
[343943757,1733112650212,-500.0,0.00028493,7]
[343943758,1733112650222,-500.0,0.00028493,7]
[343943759,1733112650232,-500.0,0.00028493,7]
[343943760,1733112650241,-500.0,0.00028493,7]
[343943761,1733112650251,-500.0,0.00028493,7]
[343943762,1733112650260,-500.0,0.00028493,7]
[343943763,1733112650270,-554.98,0.00028493,7]
[343943764,1733112650279,-500.0,0.00028493,7]
[343943765,1733112650289,-500.0,0.00028493,7]
[343943766,1733112650299,-500.0,0.00028493,7]
[343943767,1733112650308,-549.54180952,0.00028493,7]
[343943768,1733112650317,-500.0,0.00028493,7]
[343943769,1733112650327,-500.0,0.00028493,7]
[343943770,1733112650336,-500.0,0.00028493,7]
[343943771,1733112650346,-500.0,0.00028493,7]
[343943772,1733112650356,-500.0,0.00028493,7]
[343943773,1733112650365,-500.0,0.00028493,7]
[343943774,1733112650380,-945.46,0.00028493,7]
[343943775,1733112650390,-500.0,0.00028493,7]
[343943776,1733112650400,-500.0,0.00028493,7]
[343943777,1733112650409,-824.95,0.00028493,7]
[343943778,1733112650418,-500.0,0.00028493,7]
[343943779,1733112650427,-686.23,0.00028493,7]
[343943780,1733112650436,-4128.36,0.00028493,7]
[343943781,1733112650446,-500.0,0.00028493,7]
[343943782,1733112650455,-500.0,0.00028493,7]
[343943783,1733112650465,-300.0,0.000285,2]
[343943784,1733112650475,-167.90609009,0.00028502,2]
[343943785,1733112650484,-1001.62402807,0.00028521,5]
[343943786,1733112650494,-1006.88457992,0.00028521,5]
[343943787,1733112650503,-585.160163,0.00028549,15]
[343943788,1733112650512,-220.0,0.0002862,25]
[343943789,1733112650521,-151.0,0.00028633,6]
[343943790,1733112650530,-1031.46222469,0.00028667,2]
[343943791,1733112650540,-666.0,0.00028667,2]
[343943792,1733112650549,-6666.0,0.00028667,2]
[343943793,1733112650559,-500.0,0.00028766,7]
[343943794,1733112650568,-1952.05,0.00028766,7]
[343943795,1733112650577,-1018.66547853,0.00028766,7]
[343943796,1733112650818,-628.82452147,0.00028766,7]
[343943797,1733112650827,-500.0,0.00028766,7]
[343943798,1733112650838,-535.23,0.00028766,7]
[343943799,1733112650849,-500.0,0.00028766,7]
[343943800,1733112650858,-500.0,0.00028766,7]
[343943801,1733112650867,-5174.03250653,0.00028766,7]
[343943802,1733112651078,-556.87140787,0.00027397,7]
[343943803,1733112651184,-43.67764566,0.00027397,7]
[343943804,1733112651194,-500.0,0.00028493,7]
[343943805,1733112651203,-20842.80749347,0.00028766,7]
[343943806,1733112651213,-151.0,0.00028767,7]
[343943807,1733112651222,-500.0,0.00028767,7]
[343943808,1733112651232,-500.0,0.00028767,4]
[343943809,1733112651242,-500.0,0.00028767,7]
[343943810,1733112651252,-283.91185995,0.00028767,7]
[343943811,1733112651267,-236.95607513,0.0002767,7]
[343943812,1733112651276,-216.08814005,0.00028767,7]
[343943813,1733112651286,-500.0,0.00028767,7]
[343943814,1733112651296,-500.0,0.00028767,7]
[343943815,1733112651305,-500.0,0.00028767,7]
[343943816,1733112651315,-185.20119685,0.00028767,7]
[343943817,1733112651325,-555.25,0.00028767,7]
[343943818,1733112651334,-500.0,0.00028767,7]
[343943819,1733112651343,-500.0,0.00028767,7]
[343943820,1733112651354,-500.0,0.00028767,7]
[343943821,1733112651364,-500.0,0.00028767,7]
[343943822,1733112651381,-500.0,0.00028767,7]
[343943823,1733112651391,-500.0,0.00028767,7]
[343943824,1733112651401,-500.0,0.00028767,7]
[343943825,1733112651411,-500.0,0.00028767,7]
[343943826,1733112651421,-500.0,0.00028767,7]
[343943827,1733112651430,-500.0,0.00028767,7]
[343943828,1733112651441,-500.0,0.00028767,7]
[343943829,1733112651451,-550.66,0.00028767,7]
[343943830,1733112651461,-500.0,0.00028767,7]
[343943831,1733112651473,-500.0,0.00028767,7]
[343943832,1733112651483,-500.0,0.00028767,7]
[343943833,1733112651493,-500.0,0.00028767,7]
[343943834,1733112651503,-500.0,0.00028767,7]
[343943835,1733112651513,-500.0,0.00028767,7]
[343943836,1733112651522,-500.0,0.00028767,7]
[343943837,1733112651532,-500.0,0.00028767,7]
[343943838,1733112651542,-500.0,0.00028767,7]
[343943839,1733112651552,-500.0,0.00028767,7]
[343943840,1733112651561,-500.0,0.00028767,7]
[343943841,1733112651571,-500.0,0.00028767,7]
[343943842,1733112651581,-500.0,0.00028767,7]
[343943843,1733112651591,-500.0,0.00028767,7]
[343943844,1733112651601,-500.0,0.00028767,7]
[343943845,1733112651610,-500.0,0.00028767,7]
[343943846,1733112651625,-500.0,0.00028767,7]
[343943847,1733112651635,-500.0,0.00028767,7]
[343943848,1733112651644,-500.0,0.00028767,7]
[343943849,1733112651654,-500.0,0.00028767,7]
[343943850,1733112651663,-500.0,0.00028767,7]
[343943851,1733112651673,-500.0,0.00028767,7]
[343943852,1733112651683,-500.0,0.00028767,7]
[343943853,1733112651694,-500.0,0.00028767,7]
[343943854,1733112651704,-535.12106426,0.00028767,7]
[343943855,1733112651713,-500.0,0.00028767,7]
[343943856,1733112651807,-500.0,0.00028767,7]
[343943857,1733112651820,-500.0,0.00028767,7]
[343943858,1733112651831,-500.0,0.00028767,7]
[343943859,1733112651841,-500.0,0.00028767,7]
[343943860,1733112651854,-503.68,0.00028767,7]
[343943861,1733112651865,-500.0,0.00028767,7]
[343943862,1733112651881,-500.0,0.00028767,7]
[343943863,1733112651892,-500.0,0.00028767,7]
[343943864,1733112651902,-1257.7,0.00028767,7]
[343943865,1733112651912,-500.0,0.00028767,7]
[343943866,1733112651922,-500.0,0.00028767,7]
[343943867,1733112651932,-500.0,0.00028767,7]
[343943868,1733112651943,-500.0,0.00028767,7]
[343943869,1733112651952,-719.62,0.00028767,7]
[343943870,1733112651962,-500.0,0.00028767,7]
[343943871,1733112651972,-500.0,0.00028767,7]
[343943872,1733112651981,-500.0,0.00028767,7]
[343943873,1733112651991,-500.0,0.00028767,7]
[343943874,1733112652001,-500.0,0.00028767,7]
[343943875,1733112652010,-500.0,0.00028767,7]
[343943876,1733112652019,-500.0,0.00028767,7]
[343943877,1733112652029,-500.0,0.00028767,7]
[343943878,1733112652039,-500.0,0.00028767,7]
[343943879,1733112652049,-500.0,0.00028767,7]
[343943880,1733112652059,-500.0,0.00028767,7]
[343943881,1733112652069,-500.0,0.00028767,7]
[343943882,1733112652079,-500.0,0.00028767,7]
[343943883,1733112652088,-500.0,0.00028767,7]
[343943884,1733112652098,-500.0,0.00028767,7]
[343943885,1733112652107,-554.98,0.00028767,7]
[343943886,1733112652117,-500.0,0.00028767,7]
[343943887,1733112652130,-500.0,0.00028767,7]
[343943888,1733112652140,-500.0,0.00028767,7]
[343943889,1733112652149,-500.0,0.00028767,7]
[343943890,1733112652159,-500.0,0.00028767,7]
[343943891,1733112652169,-500.0,0.00028767,7]
[343943892,1733112652179,-500.0,0.00028767,7]
[343943893,1733112652188,-500.0,0.00028767,7]
[343943894,1733112652198,-500.0,0.00028767,7]
[343943895,1733112652208,-945.46,0.00028767,7]
[343943896,1733112652218,-500.0,0.00028767,7]
[343943897,1733112652227,-500.0,0.00028767,7]
[343943898,1733112652237,-824.95,0.00028767,7]
[343943899,1733112652246,-500.0,0.00028767,7]
[343943900,1733112652255,-686.23,0.00028767,7]
[343943901,1733112652264,-4128.36,0.00028767,7]
[343943902,1733112652273,-500.0,0.00028767,7]
[343943903,1733112652283,-500.0,0.00028767,7]
[343943904,1733112652292,-500.0,0.00028767,7]
[343943905,1733112652301,-401.006673,0.00028815,2]
[343943906,1733112652311,-780.933272,0.00028815,2]
[343943907,1733112652320,-1031.46222467,0.00028856,2]
[343943908,1733112652329,-1006.17123099,0.00028922,5]
[343943909,1733112652339,-167.90609009,0.00028968,2]
[343943910,1733112652348,-3200.0,0.00028981,2]
[343943911,1733112652359,-501.01931317,0.00029021,5]
[343943912,1733112652368,-1000.0,0.00029021,5]
[343943913,1733112652381,-512.68185448,0.0002904,7]
[343943914,1733112652391,-1365.59210183,0.0002904,7]
[343943915,1733112652462,-586.45789817,0.0002904,7]
[343943916,1733112652472,-1647.49,0.0002904,7]
[343943917,1733112652482,-500.0,0.0002904,7]
[343943918,1733112652492,-535.23,0.0002904,7]
[343943919,1733112652502,-500.0,0.0002904,7]
[343943920,1733112652512,-500.0,0.0002904,7]
[343943921,1733112652522,-2131.72131819,0.0002904,7]
[343943932,1733113048652,165.032852,0.00013973,2]
[343943936,1733113464106,300.0,0.00026,120]
[343943937,1733113490200,515.0,0.00026,120]
[343943951,1733113644223,-302.69733596,0.0002587,2]
[343943952,1733113644248,-777.8730005,0.00026267,2]
[343943953,1733113644273,-750.0,0.00027,120]
[343943954,1733113644298,-167.90609009,0.00027297,2]
[343943955,1733113644322,-1363.0,0.00027387,10]
[343943956,1733113644346,-500.0,0.00027396,2]
[343943957,1733113644371,-500.0,0.00027396,2]
[343943958,1733113644396,-500.0,0.00027396,2]
[343943959,1733113644421,-500.0,0.00027396,2]
[343943960,1733113644448,-500.0,0.00027396,2]
[343943961,1733113644473,-500.0,0.00027396,2]
[343943962,1733113644497,-500.0,0.00027396,2]
[343943963,1733113644519,-500.0,0.00027396,2]
[343943964,1733113644543,-500.0,0.00027396,2]
[343943965,1733113644567,-500.0,0.00027396,2]
[343943966,1733113644590,-500.0,0.00027396,2]
[343943967,1733113644613,-500.0,0.00027396,2]
[343943968,1733113644637,-239.22793753,0.00027396,2]
[343943973,1733113785397,641.66450285,0.000161,2]
[343943974,1733113785427,858.33549715,0.000161,2]
[343943989,1733113832662,-167.0,0.00022,2]
[343943990,1733113832671,-318.2860312,0.00023,2]
[343943991,1733113832681,-300.0,0.00024999,2]
[343943992,1733113832690,-300.0,0.00024999,2]
[343943993,1733113832699,-839.73293174,0.00025,2]
[343943994,1733113832710,-22153.74802204,0.00025,2]
[343943995,1733113832719,-18550.00000072,0.00026,30]
[343943996,1733113832729,-300.0,0.00027082,2]
[343943997,1733113832738,-1135.84,0.00027387,10]
[343943998,1733113832747,-239.53697235,0.00027396,2]
[343943999,1733113832756,-500.0,0.00027396,2]
[343944000,1733113832768,-500.0,0.00027396,2]
[343944001,1733113832777,-500.0,0.00027396,2]
[343944002,1733113832788,-500.0,0.00027396,2]
[343944003,1733113832797,-500.0,0.00027396,2]
[343944004,1733113832807,-501.78320408,0.00027397,7]
[343944005,1733113832817,-500.0,0.00027397,7]
[343944006,1733113832826,-500.0,0.00027397,7]
[343944007,1733113832835,-500.0,0.00027397,7]
[343944008,1733113832844,-500.0,0.00027397,7]
[343944009,1733113832853,-500.0,0.00027397,7]
[343944010,1733113832863,-568.37529543,0.00027397,7]
[343944011,1733113832872,-500.0,0.00027397,7]
[343944012,1733113832882,-543.41944706,0.00027397,7]
[343944013,1733113832891,-500.0,0.00027397,7]
[343944014,1733113832901,-500.0,0.00027397,7]
[343944015,1733113832911,-500.0,0.00027397,7]